bitfinex/quotes_SOLUSD_20250102
["timestamp","ask_amount","ask_price","bid_price","bid_amount"]
[1735827583105,0.81133238,207.68,207.62,8.03444846]
[1735827583506,0.81133238,207.68,207.61,8.03444846]
[1735827585437,8.84578084,207.68,207.61,8.03444846]
[1735827585729,8.84578084,207.68,207.6,8.03444846]
[1735827585943,8.03444846,207.67,207.6,8.03444846]
[1735827586113,0.81133238,207.66,207.6,8.03444846]
[1735827586307,0.81133238,207.66,207.59,8.03444846]
[1735827586536,0.81133238,207.66,207.6,8.03444846]
[1735827587916,8.03444846,207.67,207.6,8.03444846]
[1735827588222,0.81133238,207.7,207.6,8.03444846]
[1735827588427,8.03444846,207.68,207.6,8.03444846]
[1735827588722,0.81133238,207.67,207.6,8.03444846]
[1735827590518,0.81133238,207.67,207.62,8.03444846]
[1735827590719,0.81133238,207.69,207.62,8.03444846]
[1735827591124,0.81133238,207.71,207.64,8.03444846]
[1735827591928,0.81133238,207.71,207.66,8.03444846]
[1735827592135,0.81133238,207.73,207.67,8.03444846]
[1735827592318,8.03444846,207.75,207.67,8.03444846]
[1735827592518,0.81133238,207.74,207.67,8.03444846]
[1735827593411,8.84578084,207.76,207.69,8.03444846]
[1735827593930,8.03444846,207.75,207.68,8.03444846]
[1735827594131,0.81133238,207.74,207.68,8.03444846]
[1735827597027,8.03444846,207.73,207.66,8.03444846]
[1735827597336,0.81133238,207.72,207.66,8.03444846]
[1735827597717,8.03444846,207.74,207.67,8.03444846]
[1735827597916,0.81133238,207.73,207.67,8.03444846]
[1735827598343,0.81133238,207.73,207.59,141.9105]
[1735827598641,8.03444846,207.72,207.65,8.03444846]
[1735827598843,0.81133238,207.71,207.65,8.03444846]
[1735827599340,0.81133238,207.71,207.66,8.03444846]
[1735827599746,0.81133238,207.72,207.66,8.03444846]
[1735827600641,8.03444846,207.71,207.64,8.03444846]
[1735827601521,8.03444846,207.71,207.62,20.0]
[1735827601522,8.03444846,207.71,207.63,20.0]
[1735827601738,8.03444846,207.71,207.65,8.03444846]
[1735827602644,8.03444846,207.72,207.65,8.03444846]
[1735827602843,0.81133238,207.71,207.65,8.03444846]
[1735827603440,8.03444846,207.72,207.65,8.03444846]
[1735827603640,8.84578084,207.71,207.64,8.03444846]
[1735827603940,8.84578084,207.71,207.61,0.25098]
[1735827603941,8.03444846,207.68,207.59,7.03273716]
[1735827604131,8.03444846,207.69,207.61,8.03444846]
[1735827604326,0.81133238,207.74,207.6,8.03444846]
[1735827604327,8.03444846,207.67,207.6,8.03444846]
[1735827604640,0.81133238,207.66,207.59,8.03444846]
[1735827606844,8.84578084,207.66,207.57,1.6447]
[1735827607048,8.03444846,207.64,207.57,8.03444846]
[1735827607230,8.84578084,207.63,207.56,8.03444846]
[1735827607951,0.81133238,207.63,207.58,8.03444846]
[1735827608125,0.81133238,207.64,207.58,8.03444846]
[1735827608325,0.81133238,207.64,207.53,20.0]
[1735827608547,8.84578084,207.64,207.57,8.03444846]
[1735827611050,15.29293846,207.63,207.5,0.7226112]
[1735827611242,8.84578084,207.62,207.55,8.03444846]
[1735827611636,8.84578084,207.62,207.54,8.03444846]
[1735827611840,8.03444846,207.61,207.54,8.03444846]
[1735827612041,0.81133238,207.6,207.54,8.03444846]
[1735827612754,0.81133238,207.6,207.48,0.25098]
[1735827612949,0.81133238,207.6,207.54,8.03444846]
[1735827614138,0.81133238,207.6,207.49,20.0]
[1735827614348,0.81133238,207.6,207.54,8.03444846]
[1735827615653,0.81133238,207.6,207.55,8.03444846]
[1735827615862,0.81133238,207.61,207.55,8.03444846]
[1735827618353,8.84578084,207.61,207.54,8.03444846]
[1735827618554,8.84578084,207.61,207.48,0.97365789]
[1735827618857,8.84578084,207.61,207.54,8.03444846]
[1735827619853,8.84578084,207.61,207.48,0.97365789]
[1735827620053,8.84578084,207.61,207.54,8.03444846]
[1735827621958,8.03444846,207.6,207.53,8.03444846]
[1735827622162,0.81133238,207.59,207.53,8.03444846]
[1735827622862,8.03444846,207.6,207.53,8.03444846]
[1735827623160,0.81133238,207.59,207.53,8.03444846]
[1735827623874,0.81133238,207.59,207.48,0.97365789]
[1735827623875,0.81133238,207.59,207.55,8.03444846]
[1735827624039,0.81133238,207.61,207.55,8.03444846]
[1735827624685,0.81133238,207.61,207.48,0.97365789]
[1735827624686,8.84578084,207.61,207.54,8.03444846]
[1735827624975,0.81133238,207.61,207.55,8.03444846]
[1735827625862,12.0391,207.66,207.55,8.03444846]
[1735827625863,0.81133238,207.65,207.55,0.72266625]
[1735827626036,0.81133238,207.65,207.59,8.03444846]
[1735827626439,8.84578084,207.65,207.58,8.03444846]
[1735827629256,8.03444846,207.63,207.57,8.03444846]
[1735827629462,0.81133238,207.62,207.56,8.03444846]
[1735827629964,8.84578084,207.62,207.55,8.03444846]
[1735827630864,8.84578084,207.62,207.56,8.03444846]
[1735827631063,0.81133238,207.62,207.56,8.03444846]
[1735827631363,0.81133238,207.63,207.58,8.03444846]
[1735827631560,0.81133238,207.64,207.58,8.03444846]
[1735827632457,8.03444846,207.65,207.58,8.03444846]
[1735827632763,0.81133238,207.64,207.58,8.03444846]
[1735827633466,8.84578084,207.67,207.6,8.03444846]
[1735827633859,0.81133238,207.67,207.55,1.6435]
[1735827634881,8.03444846,207.66,207.59,8.03444846]
[1735827635166,0.81133238,207.65,207.59,8.03444846]
[1735827635374,8.03444846,207.66,207.59,8.03444846]
[1735827635674,0.81133238,207.67,207.55,2.3659047]
[1735827635981,8.03444846,207.65,207.55,1.6435]
[1735827636145,0.81133238,207.64,207.58,8.03444846]
[1735827636673,8.84578084,207.65,207.58,8.03444846]
[1735827636846,8.03444846,207.65,207.58,8.03444846]
[1735827637170,0.81133238,207.64,207.58,8.03444846]
[1735827637350,0.81133238,207.64,207.59,8.03444846]
[1735827638364,8.03444846,207.65,207.59,8.03444846]
[1735827638970,0.81133238,207.64,207.59,8.03444846]
[1735827639547,0.81133238,207.65,207.59,8.03444846]
[1735827640272,0.81133238,207.66,207.59,8.03444846]
[1735827640449,20.81133238,207.69,207.62,8.03444846]
[1735827640646,20.81133238,207.69,207.63,8.03444846]
[1735827641263,0.81133238,207.69,207.62,8.03444846]
[1735827643353,0.81133238,207.69,207.63,8.03444846]
[1735827645376,8.03444846,207.7,207.63,8.03444846]
[1735827646671,8.03444846,207.71,207.64,8.03444846]
[1735827646967,0.81133238,207.72,207.66,8.03444846]
[1735827647367,8.84578084,207.72,207.65,8.03444846]
[1735827648559,8.03444846,207.71,207.65,8.03444846]
[1735827648768,8.03444846,207.71,207.64,8.03444846]
[1735827649269,0.81133238,207.7,207.64,8.03444846]
[1735827650080,8.03444846,207.71,207.65,8.03444846]
[1735827651476,0.81133238,207.7,207.65,8.03444846]
[1735827651691,8.03444846,207.71,207.65,8.03444846]
[1735827651980,0.81133238,207.7,207.65,8.03444846]
[1735827652973,8.03444846,207.71,207.65,8.03444846]
[1735827653180,0.81133238,207.7,207.65,8.03444846]
[1735827653965,8.03444846,207.71,207.65,8.03444846]
[1735827655557,8.84578084,207.72,207.65,8.03444846]
[1735827656185,8.84578084,207.72,207.67,8.03444846]
[1735827656186,0.81133238,207.72,207.67,8.03444846]
[1735827657379,0.81133238,207.72,207.66,8.03444846]
[1735827659588,0.81133238,207.72,207.67,8.03444846]
[1735827659765,8.03444846,207.74,207.68,8.03444846]
[1735827660078,8.84578084,207.73,207.67,8.03444846]
[1735827661687,0.81133238,207.73,207.68,8.03444846]
[1735827662174,0.81133238,207.74,207.68,8.03444846]
[1735827662377,8.84578084,207.74,207.68,8.03444846]
[1735827662680,8.03444846,207.73,207.67,8.03444846]
[1735827663480,8.84578084,207.74,207.68,8.03444846]
[1735827663784,8.84578084,207.74,207.67,8.03444846]
[1735827663987,20.0,207.75,207.69,8.03444846]
[1735827663988,8.03444846,207.75,207.69,8.03444846]
[1735827664500,0.81133238,207.77,207.71,8.03444846]
[1735827665987,8.03444846,207.75,207.63,0.25098]
[1735827666164,0.81133238,207.74,207.63,0.25098]
[1735827666362,0.81133238,207.74,207.68,8.03444846]
[1735827667188,0.81133238,207.75,207.68,8.03444846]
[1735827667966,0.81133238,207.75,207.69,8.03444846]
[1735827668282,8.03444846,207.76,207.69,8.03444846]
[1735827669601,0.81133238,207.77,207.71,8.03444846]
[1735827669775,0.81133238,207.78,207.72,8.03444846]
[1735827670089,8.03444846,207.8,207.73,8.03444846]
[1735827670387,0.81133238,207.8,207.73,8.03444846]
[1735827670896,28.84578084,207.8,207.73,8.03444846]
[1735827671287,0.81133238,207.8,207.73,8.03444846]
[1735827671484,8.03444846,207.8,207.73,8.03444846]
[1735827672791,8.03444846,207.78,207.71,8.03444846]
[1735827673087,8.84578084,207.77,207.69,1.5785]
[1735827673293,8.84578084,207.77,207.7,8.03444846]
[1735827674292,8.03444846,207.79,207.72,8.03444846]
[1735827674668,8.03444846,207.8,207.73,8.03444846]
[1735827675788,8.03444846,207.8,207.72,8.03444846]
[1735827676174,8.84578084,207.79,207.72,8.03444846]
[1735827677294,8.03444846,207.79,207.72,8.03444846]
[1735827677792,8.03444846,207.79,207.69,1.5785]
[1735827677995,8.84578084,207.78,207.7,8.03444846]
[1735827678192,8.84578084,207.78,207.71,8.03444846]
[1735827678694,8.03444846,207.79,207.72,8.03444846]
[1735827681198,8.03444846,207.79,207.69,1.5785]
[1735827681492,8.03444846,207.8,207.72,8.03444846]
[1735827681700,8.84578084,207.79,207.72,8.03444846]
[1735827682098,8.84578084,207.79,207.69,1.5785]
[1735827682272,8.84578084,207.79,207.72,8.03444846]
[1735827682594,0.81133238,207.79,207.72,8.03444846]
[1735827682999,8.03444846,207.8,207.73,8.03444846]
[1735827683517,0.81133238,207.79,207.73,8.03444846]
[1735827683700,8.03444846,207.8,207.73,8.03444846]
[1735827684382,8.03444846,207.81,207.74,8.03444846]
[1735827684584,0.81133238,207.8,207.74,8.03444846]
[1735827685015,8.84578084,207.8,207.73,8.03444846]
[1735827686379,8.84578084,207.8,207.72,8.03444846]
[1735827687079,5.81471345,207.8,207.72,8.03444846]
[1735827688718,5.81471345,207.8,207.73,8.03444846]
[1735827689213,5.81471345,207.8,207.72,8.03444846]
[1735827690009,8.03444846,207.79,207.72,8.03444846]
[1735827690215,8.03444846,207.8,207.72,8.03444846]
[1735827690509,23.776884,207.82,207.72,8.03444846]
[1735827690510,8.03444846,207.79,207.72,8.03444846]
[1735827690711,8.03444846,207.79,207.65,135.6]
[1735827690712,8.03444846,207.75,207.65,135.6]
[1735827690877,8.03444846,207.75,207.68,8.03444846]
[1735827691078,8.03444846,207.74,207.63,1.6456]
[1735827691304,8.03444846,207.74,207.67,8.03444846]
[1735827691886,8.03444846,207.73,207.66,8.03444846]
[1735827692105,8.03444846,207.74,207.67,8.03444846]
[1735827694519,8.03444846,207.75,207.68,8.03444846]
[1735827694820,8.03444846,207.76,207.69,8.03444846]
[1735827695421,8.03444846,207.75,207.68,8.03444846]
[1735827697526,8.03444846,207.74,207.63,1.6456]
[1735827697825,8.03444846,207.75,207.68,8.03444846]
[1735827697997,6.1003,207.76,207.68,8.03444846]
[1735827697998,14.13474846,207.76,207.68,8.03444846]
[1735827698197,13.63474846,207.76,207.68,8.03444846]
[1735827698618,8.03444846,207.74,207.67,8.03444846]
[1735827699523,8.03444846,207.74,207.66,8.03444846]
[1735827699916,8.03444846,207.74,207.67,8.03444846]
[1735827701521,8.03444846,207.75,207.68,8.03444846]
[1735827702924,8.03444846,207.74,207.67,8.03444846]
[1735827703796,8.03444846,207.74,207.63,21.6456]
[1735827703797,8.03444846,207.73,207.63,21.6456]
[1735827704010,8.03444846,207.73,207.66,8.03444846]
[1735827704212,31.81133246,207.75,207.68,8.03444846]
[1735827704404,13.63474846,207.76,207.69,8.03444846]
[1735827704618,13.63474846,207.76,207.7,8.03444846]
[1735827704619,5.6003,207.76,207.7,8.03444846]
[1735827706719,5.6003,207.76,207.69,8.03444846]
[1735827706720,13.63474846,207.76,207.69,8.03444846]
[1735827707020,8.03444846,207.75,207.68,8.03444846]
[1735827707403,13.63474846,207.76,207.69,8.03444846]
[1735827707600,8.03444846,207.75,207.64,0.25098]
[1735827707822,8.03444846,207.73,207.66,8.03444846]
[1735827708831,23.776884,207.72,207.66,8.03444846]
[1735827709016,31.81133246,207.72,207.65,8.03444846]
[1735827709216,23.776884,207.72,207.66,8.03444846]
[1735827711229,8.03444846,207.73,207.66,8.03444846]
[1735827711432,8.03444846,207.74,207.63,21.6456]
[1735827711632,8.03444846,207.74,207.67,8.03444846]
[1735827711819,5.6003,207.76,207.69,8.03444846]
[1735827712019,13.63474846,207.76,207.69,8.03444846]
[1735827712832,5.6003,207.76,207.69,8.03444846]
[1735827713013,8.57984846,207.77,207.7,8.03444846]
[1735827714015,8.03444846,207.78,207.71,8.03444846]
[1735827714220,8.03444846,207.79,207.72,8.03444846]
[1735827714610,28.03444846,207.78,207.71,8.03444846]
[1735827715011,8.03444846,207.78,207.71,8.03444846]
[1735827715626,6.3824,207.81,207.73,8.03444846]
[1735827715834,14.41684846,207.81,207.73,8.03444846]
[1735827716027,8.03444846,207.8,207.73,8.03444846]
[1735827716635,8.03444846,207.79,207.72,8.03444846]
[1735827716931,8.03444846,207.8,207.73,8.03444846]
[1735827719319,8.03444846,207.82,207.76,8.03444846]
[1735827719521,8.03444846,207.82,207.75,8.03444846]
[1735827719847,8.03444846,207.81,207.75,8.03444846]
[1735827720420,8.03444846,207.81,207.74,8.03444846]
[1735827722031,7.0735,207.87,207.78,8.03444846]
[1735827722337,8.03444846,207.84,207.77,8.03444846]
[1735827722540,8.03444846,207.82,207.73,20.25098]
[1735827722741,8.03444846,207.81,207.74,8.03444846]
[1735827722942,8.03444846,207.8,207.73,8.03444846]
[1735827723624,8.03444846,207.81,207.74,8.03444846]
[1735827725351,8.03444846,207.81,207.75,8.03444846]
[1735827725518,8.03444846,207.81,207.74,8.03444846]
[1735827729544,8.03444846,207.81,207.72,1.512]
[1735827729843,8.03444846,207.81,207.74,8.03444846]
[1735827730540,8.03444846,207.82,207.74,8.03444846]
[1735827732647,8.03444846,207.82,207.75,8.03444846]
[1735827732823,7.0735,207.87,207.78,20.0]
[1735827733143,15.00322851,207.93,207.86,8.03444846]
[1735827733144,7.50161425,207.92,207.86,8.03444846]
[1735827733336,7.50161425,207.92,207.91,8.03444846]
[1735827733824,6.6492,207.98,207.91,8.03444846]
[1735827734024,14.28771425,208.03,207.96,8.03444846]
[1735827734329,14.28771425,208.03,207.97,8.03444846]
[1735827734637,20.0,207.99,207.97,8.03444846]
[1735827734827,20.0,207.99,207.9,32.13779384]
[1735827734828,20.0,207.99,207.96,8.03444846]
[1735827735026,20.0,207.99,207.95,8.03444846]
[1735827735426,0.12549,207.97,207.91,0.72121179]
[1735827735747,8.03444846,207.93,207.86,8.03444846]
[1735827735939,0.72128712,207.99,207.92,8.03444846]
[1735827736147,0.72128712,208.02,207.87,20.72148997]
[1735827736623,24.49817112,208.02,207.95,8.03444846]
[1735827736826,0.72128712,208.09,207.96,8.03444846]
[1735827737131,8.03444846,208.04,207.97,8.03444846]
[1735827737647,8.75573558,208.02,207.95,8.03444846]
[1735827738266,8.03444846,208.01,207.95,8.03444846]
[1735827738553,14.82054846,208.03,207.96,8.03444846]
[1735827738853,8.03444846,208.04,207.97,8.03444846]
[1735827739847,8.03444846,208.05,207.98,8.03444846]
[1735827740240,8.03444846,208.05,207.94,0.72106866]
[1735827740241,7.6306,208.08,208.0,8.03444846]
[1735827740538,8.03444846,208.07,208.01,8.03444846]
[1735827740743,7.6306,208.08,208.02,8.03444846]
[1735827741139,8.03444846,208.09,208.02,8.03444846]
[1735827742229,8.03444846,208.04,207.94,20.72089535]
[1735827742434,8.03444846,208.03,207.97,8.03444846]
[1735827743732,8.03444846,208.04,207.97,8.03444846]
[1735827743937,8.03444846,208.04,207.97,8.75548727]
[1735827744132,8.03444846,208.05,207.98,8.03444846]
[1735827744553,8.03444846,208.04,207.98,8.03444846]
[1735827745259,8.03444846,208.06,207.99,8.03444846]
[1735827745855,8.03444846,208.05,207.98,8.03444846]
[1735827746155,8.03444846,208.04,207.98,8.03444846]
[1735827748352,8.03444846,208.04,207.97,0.72103919]
[1735827748656,8.03444846,208.04,207.98,8.03444846]
[1735827749233,8.03444846,208.03,207.96,8.03444846]
[1735827749435,8.03444846,208.02,207.95,8.75548849]
[1735827750059,8.03444846,208.03,207.96,8.03444846]
[1735827750431,8.03444846,208.04,207.97,8.03444846]
[1735827750633,8.03444846,208.03,207.96,8.03444846]
[1735827752332,8.03444846,208.0,207.93,8.03444846]
[1735827752531,8.75573558,207.99,207.89,8.73050761]
[1735827752843,0.72128712,207.99,207.93,8.03444846]
[1735827753045,8.03444846,208.0,207.94,8.03444846]
[1735827753260,8.03444846,208.01,207.94,8.03444846]
[1735827753464,0.72128712,208.0,207.94,8.03444846]
[1735827756162,28.03444846,208.03,207.96,8.03444846]
[1735827756731,8.03444846,208.03,207.96,8.03444846]
[1735827759152,8.03444846,208.02,207.96,8.03444846]
[1735827759358,8.03444846,208.03,207.96,8.03444846]
[1735827760974,8.75573558,208.04,207.97,8.03444846]
[1735827761668,8.03444846,208.03,207.97,8.03444846]
[1735827766085,0.72128712,208.05,207.97,8.03444846]
[1735827766376,8.03444846,208.03,207.97,8.03444846]
[1735827767070,8.03444846,208.03,207.96,8.03444846]
[1735827767441,8.03444846,208.03,207.97,8.03444846]
[1735827769139,0.72128712,208.09,208.02,8.03444846]
[1735827769348,8.03444846,208.09,208.02,8.03444846]
[1735827769661,0.72128712,208.08,208.02,8.03444846]
[1735827769867,8.03444846,208.1,208.03,8.03444846]
[1735827770239,8.75573558,208.1,208.03,8.03444846]
[1735827770443,0.72128712,208.1,208.04,8.03444846]
[1735827770643,8.03444846,208.11,208.04,8.03444846]
[1735827771086,8.03444846,208.11,208.0,0.72090204]
[1735827771250,8.75573558,208.12,208.05,8.03444846]
[1735827772275,28.03444846,208.13,208.07,8.03444846]
[1735827772448,0.72128712,208.15,208.07,8.03444846]
[1735827772643,0.72128712,208.15,208.08,8.03444846]
[1735827772644,8.75573558,208.15,208.08,8.03444846]
[1735827773175,8.03444846,208.14,208.07,8.03444846]
[1735827773584,0.72128712,208.17,208.08,8.03444846]
[1735827773751,0.72128712,208.17,208.09,1.5484]
[1735827774076,0.72128712,208.22,208.16,8.03444846]
[1735827774454,8.03444846,208.23,208.16,8.03444846]
[1735827774830,0.72128712,208.22,208.16,8.03444846]
[1735827774978,20.0,208.21,208.17,8.03444846]
[1735827775188,0.72128712,208.22,208.16,8.03444846]
[1735827775685,20.0,208.21,208.15,8.03444846]
[1735827776257,8.75573558,208.23,208.15,8.03444846]
[1735827776258,8.03444846,208.22,208.15,8.03444846]
[1735827776777,31.81133246,208.23,208.15,8.03444846]
[1735827776968,0.72128712,208.22,208.15,8.03444846]
[1735827777581,8.75573558,208.22,208.15,8.03444846]
[1735827779683,8.75573558,208.22,208.14,8.03444846]
[1735827780090,8.75573558,208.22,208.15,8.03444846]
[1735827780277,0.72128712,208.26,208.16,8.03444846]
[1735827780479,8.03444846,208.23,208.16,8.03444846]
[1735827780677,8.03444846,208.2,208.14,8.03444846]
[1735827781264,8.03444846,208.2,208.13,8.03444846]
[1735827782668,8.03444846,208.21,208.14,8.03444846]
[1735827782872,8.03444846,208.22,208.15,8.03444846]
[1735827783065,8.03444846,208.21,208.14,8.03444846]
[1735827785488,8.03444846,208.22,208.15,8.03444846]
[1735827786193,8.03444846,208.22,208.16,8.03444846]
[1735827786574,29.0024,208.32,208.16,8.03444846]
[1735827786575,0.72128712,208.29,208.21,8.03444846]
[1735827786777,8.03444846,208.3,208.23,8.03444846]
[1735827786973,8.03444846,208.31,208.24,8.03444846]
[1735827787757,8.03444846,208.3,208.23,8.03444846]
[1735827788192,20.0,208.32,208.24,8.03444846]
[1735827788489,8.03444846,208.31,208.23,14.08684846]
[1735827788687,31.81133246,208.31,208.23,14.08684846]
[1735827788987,8.03444846,208.29,208.23,6.0524]
[1735827789165,8.75573558,208.29,208.23,6.0524]
[1735827790271,8.03444846,208.29,208.23,6.0524]
[1735827791797,8.03444846,208.28,208.23,6.0524]
[1735827793167,8.03444846,208.29,208.23,6.0524]
[1735827793788,8.03444846,208.29,208.18,0.84574292]
[1735827794001,8.03444846,208.28,208.21,8.03444846]
[1735827794486,31.81133246,208.25,208.18,7.21985292]
[1735827794814,8.03444846,208.21,208.18,6.4996]
[1735827795205,8.03444846,208.19,208.16,1.5026]
[1735827795408,8.03444846,208.18,208.16,1.5026]
[1735827795610,8.03444846,208.17,208.13,6.011]
[1735827795792,8.03444846,208.14,208.11,1.625]
[1735827796608,8.03444846,208.15,208.11,1.625]
[1735827798813,8.03444846,208.16,208.11,1.625]
[1735827799022,23.776884,208.15,208.11,1.625]
[1735827799325,8.03444846,208.13,208.06,8.03444846]
[1735827799500,8.03444846,208.11,208.05,1.5393]
[1735827800219,8.03444846,208.14,208.07,8.03444846]
[1735827800418,28.03444846,208.15,208.08,8.03444846]
[1735827800588,0.72128712,208.14,208.08,8.03444846]
[1735827801120,8.75573558,208.14,208.07,8.03444846]
[1735827802226,0.72128712,208.14,208.09,8.03444846]
[1735827802521,31.81133246,208.15,208.08,8.03444846]
[1735827802818,0.72128712,208.14,208.08,8.03444846]
[1735827803698,23.776884,208.13,208.08,8.03444846]
[1735827803901,0.72128712,208.12,208.06,8.03444846]
[1735827804400,8.03444846,208.14,208.07,8.03444846]
[1735827804707,23.776884,208.12,208.07,8.03444846]
[1735827805702,23.776884,208.13,208.07,8.03444846]
[1735827805899,28.03444846,208.15,208.05,1.5393]
[1735827806131,20.0,208.15,208.09,8.03444846]
[1735827806332,23.776884,208.14,208.09,8.03444846]
[1735827806628,23.776884,208.14,208.08,8.03444846]
[1735827807010,0.72128712,208.13,208.07,8.03444846]
[1735827807207,24.49817112,208.14,208.08,8.03444846]
[1735827807825,24.49817112,208.14,208.07,8.03444846]
[1735827808635,8.03444846,208.13,208.06,8.03444846]
[1735827808938,32.53261958,208.14,208.07,8.03444846]
[1735827811039,24.49817112,208.14,208.08,8.03444846]
[1735827811205,0.72128712,208.14,208.08,8.03444846]
[1735827811408,20.0,208.15,208.09,8.03444846]
[1735827811610,20.72128712,208.15,208.09,8.03444846]
[1735827812547,0.72128712,208.16,208.1,8.03444846]
[1735827812900,0.72128712,208.16,208.06,0.7207321]
[1735827813105,0.72128712,208.18,208.12,8.03444846]
[1735827813717,23.776884,208.17,208.11,8.03444846]
[1735827814633,0.72128712,208.16,208.1,8.03444846]
[1735827816460,23.776884,208.17,208.11,8.03444846]
[1735827816642,24.49817112,208.17,208.11,8.03444846]
[1735827818558,32.53261958,208.17,208.1,8.03444846]
[1735827819152,8.03444846,208.16,208.1,8.03444846]
[1735827819330,8.75573558,208.16,208.1,8.03444846]
[1735827819872,31.81133246,208.17,208.1,8.03444846]
[1735827820022,8.03444846,208.17,208.1,8.03444846]
[1735827820225,31.81133246,208.17,208.1,8.03444846]
[1735827820521,23.776884,208.17,208.11,8.03444846]
[1735827820846,0.72128712,208.18,208.13,8.03444846]
[1735827821055,0.72128712,208.2,208.14,8.03444846]
[1735827821424,28.03444846,208.21,208.14,8.03444846]
[1735827821621,0.72128712,208.2,208.14,8.03444846]
[1735827822415,28.03444846,208.21,208.14,8.03444846]
[1735827824638,20.0,208.21,208.14,8.03444846]
[1735827824828,28.03444846,208.21,208.14,8.03444846]
[1735827825147,23.776884,208.22,208.16,8.03444846]
[1735827826336,23.776884,208.22,208.15,8.03444846]
[1735827827340,8.03444846,208.2,208.11,7.29647161]
[1735827827531,8.03444846,208.2,208.13,8.03444846]
[1735827828847,8.75573558,208.19,208.13,8.03444846]
[1735827829047,8.03444846,208.17,208.08,0.72053037]
[1735827829228,8.75573558,208.17,208.11,8.03444846]
[1735827829539,0.72128712,208.17,208.11,8.03444846]
[1735827829731,8.03444846,208.16,208.09,8.03444846]
[1735827829932,8.03444846,208.16,208.08,0.72053037]
[1735827829933,8.03444846,208.16,208.1,8.03444846]
[1735827830447,8.03444846,208.16,208.09,8.03444846]
[1735827830650,0.72128712,208.15,208.09,8.03444846]
[1735827830822,8.03444846,208.16,208.09,8.03444846]
[1735827831431,8.75573558,208.17,208.1,8.03444846]
[1735827832428,8.75573558,208.17,208.11,8.03444846]
[1735827833019,23.776884,208.16,208.11,8.03444846]
[1735827833242,0.72128712,208.15,208.1,8.03444846]
[1735827833434,8.03444846,208.14,208.06,6.5677]
[1735827833736,8.03444846,208.14,208.07,8.03444846]
[1735827834251,8.03444846,208.14,208.08,8.03444846]
[1735827834440,0.72128712,208.13,208.08,8.03444846]
[1735827834950,8.03444846,208.15,208.08,8.03444846]
[1735827835147,0.72128712,208.14,208.08,8.03444846]
[1735827836055,0.72128712,208.14,208.09,8.03444846]
[1735827838424,23.776884,208.14,208.09,8.03444846]
[1735827838829,23.776884,208.14,208.04,0.72075894]
[1735827839047,0.72128712,208.13,208.08,8.03444846]
[1735827839457,24.49817112,208.14,208.08,8.03444846]
[1735827839850,24.49817112,208.14,208.09,8.03444846]
[1735827841362,24.49817112,208.14,208.1,8.03444846]
[1735827844442,24.49817112,208.14,208.04,6.73095894]
[1735827844749,32.53261958,208.14,208.07,8.03444846]
[1735827845732,24.49817112,208.14,208.08,8.03444846]
[1735827847931,8.03444846,208.13,208.04,0.72075894]
[1735827848259,8.03444846,208.1,208.04,8.03444846]
[1735827849450,8.03444846,208.12,208.05,8.03444846]
[1735827849758,0.72128712,208.13,208.09,8.03444846]
[1735827850265,0.72128712,208.13,208.08,8.03444846]
[1735827854272,0.72128712,208.13,208.09,8.03444846]
[1735827855951,0.72128712,208.14,208.09,8.03444846]
[1735827856967,24.49817112,208.15,208.1,8.03444846]
[1735827857149,23.776884,208.14,208.1,8.03444846]
[1735827858372,0.72128712,208.13,208.09,8.03444846]
[1735827859070,24.49817112,208.15,208.09,8.03444846]
[1735827859247,24.49817112,208.15,208.1,8.03444846]
[1735827860270,24.49817112,208.15,208.02,0.72079553]
[1735827860271,0.72128712,208.15,208.12,8.03444846]
[1735827860470,0.72128712,208.19,208.13,8.03444846]
[1735827861271,23.776884,208.18,208.13,8.03444846]
[1735827861473,23.776884,208.16,208.13,8.03444846]
[1735827861771,0.72128712,208.15,208.11,8.03444846]
[1735827863366,23.776884,208.14,208.04,0.72070762]
[1735827863673,0.72128712,208.13,208.08,8.03444846]
[1735827867874,0.72128712,208.13,208.03,20.0]
[1735827868082,0.72128712,208.13,208.07,8.03444846]
[1735827869480,0.72128712,208.13,208.08,8.03444846]
[1735827870659,0.72128712,208.14,208.09,8.03444846]
[1735827870860,0.72128712,208.15,208.12,8.03444846]
[1735827871185,8.03444846,208.19,208.12,8.03444846]
[1735827871363,23.776884,208.17,208.12,8.03444846]
[1735827871678,23.776884,208.17,208.11,8.03444846]
[1735827871679,0.72128712,208.16,208.11,8.03444846]
[1735827872488,0.72128712,208.16,208.1,8.03444846]
[1735827873787,8.75573558,208.2,208.13,8.03444846]
[1735827873978,23.776884,208.19,208.13,8.03444846]
[1735827874186,23.776884,208.17,208.13,8.03444846]
[1735827875283,24.49817112,208.19,208.13,8.03444846]
[1735827875985,32.53261958,208.19,208.12,8.03444846]
[1735827879088,24.49817112,208.19,208.13,8.03444846]
[1735827880490,0.72128712,208.19,208.13,8.03444846]
[1735827880680,8.75573558,208.2,208.13,8.03444846]
[1735827882389,8.75573558,208.2,208.12,8.03444846]
[1735827882583,8.75573558,208.2,208.13,8.03444846]
[1735827882774,8.75573558,208.2,208.14,8.03444846]
[1735827882775,0.72128712,208.2,208.14,8.03444846]